[Event "*** Titled Tuesday Blitz"]
[Site "Chess.com"]
[Date "2020.05.12"]
[Round "3"]
[White "Mitronych"]
[Black "wadsy27"]
[Result "1-0"]
[WhiteElo "2298"]
[BlackElo "2496"]
[TimeControl "180+1"]
[EndTime "10:25:26 PDT"]
[Termination "Mitronych won by resignation"]

1. e4 {[%clk 0:03:00.9]} 1... c5 {[%clk 0:02:53.5]} 2. Nf3 {[%clk 0:03:00.6]}
2... e6 {[%clk 0:02:53.2]} 3. d4 {[%clk 0:03:00.9]} 3... cxd4 {[%clk 0:02:54.1]}
4. Nxd4 {[%clk 0:03:01.8]} 4... Nc6 {[%clk 0:02:54.8]} 5. Nc3 {[%clk 0:03:01.1]}
5... Qc7 {[%clk 0:02:53.7]} 6. Be3 {[%clk 0:03:01.2]} 6... a6 {[%clk 0:02:53.5]}
7. Qd2 {[%clk 0:03:00.6]} 7... Nf6 {[%clk 0:02:52.7]} 8. f4 {[%clk 0:02:59.4]}
8... b5 {[%clk 0:02:46.9]} 9. Bd3 {[%clk 0:02:55.8]} 9... Be7 {[%clk 0:02:43.2]}
10. O-O {[%clk 0:02:54.8]} 10... Bb7 {[%clk 0:02:35.7]} 11. Kh1 {[%clk
0:02:53.1]} 11... b4 {[%clk 0:02:32]} 12. Nce2 {[%clk 0:02:31.2]} 12... Nxd4
{[%clk 0:02:29.2]} 13. Bxd4 {[%clk 0:02:30.9]} 13... O-O {[%clk 0:02:28.3]} 14.
Ng3 {[%clk 0:02:29.8]} 14... d5 {[%clk 0:02:18.4]} 15. e5 {[%clk 0:02:29.2]}
15... Ne4 {[%clk 0:02:18.2]} 16. Bxe4 {[%clk 0:02:14.7]} 16... dxe4 {[%clk
0:02:19.1]} 17. c3 {[%clk 0:02:15]} 17... bxc3 {[%clk 0:02:08.8]} 18. bxc3
{[%clk 0:02:15.9]} 18... Bh4 {[%clk 0:02:04.7]} 19. Nh5 {[%clk 0:01:57]} 19...
Rfd8 {[%clk 0:01:49.5]} 20. Qe3 {[%clk 0:01:56]} 20... Qc6 {[%clk 0:01:45.4]}
21. Rab1 {[%clk 0:01:53.4]} 21... Rac8 {[%clk 0:01:39.8]} 22. Rb6 {[%clk
0:01:49]} 22... Qd5 {[%clk 0:01:39.7]} 23. f5 {[%clk 0:01:36.6]} 23... exf5
{[%clk 0:01:34.8]} 24. Rxf5 {[%clk 0:01:33.1]} 24... Qxd4 {[%clk 0:01:28.3]} 25.
cxd4 {[%clk 0:01:27.1]} 25... Rc1+ {[%clk 0:01:27.4]} 26. Qxc1 {[%clk
0:01:26.8]} 1-0

[Event "*** Titled Tuesday Blitz"]
[Site "Chess.com"]
[Date "2020.05.12"]
[Round "3"]
[White "Philos_85"]
[Black "yamalchess"]
[Result "0-1"]
[WhiteElo "2238"]
[BlackElo "2510"]
[TimeControl "180+1"]
[EndTime "10:25:28 PDT"]
[Termination "yamalchess won by resignation"]

1. d4 {[%clk 0:03:00.9]} 1... Nf6 {[%clk 0:02:59.3]} 2. Nf3 {[%clk 0:03:00.2]}
2... c5 {[%clk 0:02:59.6]} 3. d5 {[%clk 0:02:57.5]} 3... b5 {[%clk 0:02:59.6]}
4. Bg5 {[%clk 0:02:56.1]} 4... Ne4 {[%clk 0:02:57.4]} 5. Bf4 {[%clk 0:02:52.3]}
5... d6 {[%clk 0:02:55.8]} 6. Nfd2 {[%clk 0:02:46.2]} 6... Nf6 {[%clk
0:02:49.2]} 7. e4 {[%clk 0:02:43.9]} 7... g6 {[%clk 0:02:47.3]} 8. Bxb5+ {[%clk
0:02:42.4]} 8... Nbd7 {[%clk 0:02:41.3]} 9. Nc3 {[%clk 0:02:31.5]} 9... Bg7
{[%clk 0:02:40.7]} 10. O-O {[%clk 0:02:30.4]} 10... O-O {[%clk 0:02:40.5]} 11.
h3 {[%clk 0:02:15.1]} 11... Rb8 {[%clk 0:02:40.5]} 12. Rb1 {[%clk 0:02:08.9]}
12... Nh5 {[%clk 0:02:31.2]} 13. Bh2 {[%clk 0:02:04]} 13... Bxc3 {[%clk
0:01:55.1]} 14. bxc3 {[%clk 0:02:02.9]} 14... Qa5 {[%clk 0:01:54.8]} 15. Rb3
{[%clk 0:01:13.4]} 15... Rxb5 {[%clk 0:01:51.3]} 16. Nc4 {[%clk 0:01:09]} 16...
Qa6 {[%clk 0:01:48.7]} 0-1

[Event "*** Titled Tuesday Blitz"]
[Site "Chess.com"]
[Date "2020.05.12"]
[Round "3"]
[White "StephenDedalus83"]
[Black "Oglob71"]
[Result "1-0"]
[WhiteElo "2724"]
[BlackElo "2505"]
[TimeControl "180+1"]
[EndTime "10:25:29 PDT"]
[Termination "StephenDedalus83 won by resignation"]

1. e4 {[%clk 0:03:00.9]} 1... c5 {[%clk 0:02:59.5]} 2. Nf3 {[%clk 0:03:00.3]}
2... e6 {[%clk 0:02:59.6]} 3. d4 {[%clk 0:03:00.7]} 3... cxd4 {[%clk 0:02:59.8]}
4. Nxd4 {[%clk 0:03:01.6]} 4... a6 {[%clk 0:02:59.4]} 5. Nc3 {[%clk 0:03:00]}
5... Qc7 {[%clk 0:02:59.2]} 6. g3 {[%clk 0:02:55.2]} 6... Nf6 {[%clk 0:02:58.9]}
7. Bg2 {[%clk 0:02:54.9]} 7... d6 {[%clk 0:02:59.4]} 8. O-O {[%clk 0:02:54.2]}
8... Bd7 {[%clk 0:02:59.9]} 9. a4 {[%clk 0:02:52.3]} 9... Nc6 {[%clk 0:03:00.1]}
10. Nb3 {[%clk 0:02:52.1]} 10... Be7 {[%clk 0:02:52.7]} 11. a5 {[%clk
0:02:50.1]} 11... Ne5 {[%clk 0:02:50.5]} 12. f4 {[%clk 0:02:41]} 12... Nc4
{[%clk 0:02:49]} 13. Kh1 {[%clk 0:02:40.3]} 13... O-O {[%clk 0:02:48]} 14. g4
{[%clk 0:02:39.4]} 14... Be8 {[%clk 0:02:41.6]} 15. g5 {[%clk 0:02:38.6]} 15...
Nd7 {[%clk 0:02:42]} 16. f5 {[%clk 0:02:37.2]} 16... Bd8 {[%clk 0:02:33]} 17.
Nd4 {[%clk 0:02:27.3]} 17... e5 {[%clk 0:02:04.3]} 18. Nd5 {[%clk 0:02:23.5]}
18... Qb8 {[%clk 0:02:02]} 19. Nb3 {[%clk 0:02:22.1]} 19... Nc5 {[%clk
0:01:58.3]} 20. Nxc5 {[%clk 0:02:10.5]} 20... dxc5 {[%clk 0:01:57.8]} 21. Qh5
{[%clk 0:02:05.7]} 21... Qd6 {[%clk 0:01:44.7]} 22. f6 {[%clk 0:01:54.2]} 22...
Bc6 {[%clk 0:01:38]} 23. fxg7 {[%clk 0:01:52.3]} 23... Kxg7 {[%clk 0:01:37.6]}
24. Nf6 {[%clk 0:01:47]} 24... Bxf6 {[%clk 0:01:37.3]} 25. gxf6+ {[%clk
0:01:39.9]} 25... Kh8 {[%clk 0:01:36.8]} 26. Bh6 {[%clk 0:01:37.9]} 26... Qe6
{[%clk 0:01:27.5]} 27. Bg7+ {[%clk 0:01:34.3]} 27... Kg8 {[%clk 0:01:25.8]} 28.
Qg5 {[%clk 0:01:33.1]} 1-0

[Event "*** Titled Tuesday Blitz"]
[Site "Chess.com"]
[Date "2020.05.12"]
[Round "3"]
[White "kinga2008"]
[Black "MightyGMpretender"]
[Result "0-1"]
[WhiteElo "2215"]
[BlackElo "2575"]
[TimeControl "180+1"]
[EndTime "10:25:32 PDT"]
[Termination "MightyGMpretender won by checkmate"]

1. e4 {[%clk 0:02:59.2]} 1... c5 {[%clk 0:02:57.9]} 2. Nf3 {[%clk 0:02:50.5]}
2... d6 {[%clk 0:02:56.2]} 3. c3 {[%clk 0:02:34.4]} 3... Nf6 {[%clk 0:02:54.8]}
4. Bd3 {[%clk 0:02:33.1]} 4... e5 {[%clk 0:02:53.3]} 5. Bc2 {[%clk 0:02:33]}
5... Be7 {[%clk 0:02:53.9]} 6. O-O {[%clk 0:02:33.1]} 6... O-O {[%clk
0:02:54.5]} 7. d3 {[%clk 0:02:34]} 7... Nc6 {[%clk 0:02:54.1]} 8. Nbd2 {[%clk
0:02:34.9]} 8... Re8 {[%clk 0:02:48.1]} 9. Re1 {[%clk 0:02:34.1]} 9... Bf8
{[%clk 0:02:48.5]} 10. Nf1 {[%clk 0:02:33.3]} 10... g6 {[%clk 0:02:49.1]} 11.
Bg5 {[%clk 0:02:32.2]} 11... Bg7 {[%clk 0:02:48.6]} 12. h3 {[%clk 0:02:31.2]}
12... h6 {[%clk 0:02:48.6]} 13. Be3 {[%clk 0:02:30.7]} 13... b6 {[%clk
0:02:47.4]} 14. Qd2 {[%clk 0:02:30]} 14... Kh7 {[%clk 0:02:46.5]} 15. Ng3 {[%clk
0:02:28.8]} 15... d5 {[%clk 0:02:46.2]} 16. exd5 {[%clk 0:02:27]} 16... Nxd5
{[%clk 0:02:45.5]} 17. Ne4 {[%clk 0:02:26.9]} 17... Nxe3 {[%clk 0:02:28.2]} 18.
Qxe3 {[%clk 0:02:25.6]} 18... Be6 {[%clk 0:02:24.8]} 19. Bb3 {[%clk 0:02:23.5]}
19... Qd7 {[%clk 0:02:10.6]} 20. Rad1 {[%clk 0:02:19.9]} 20... Rad8 {[%clk
0:02:09.6]} 21. Nh2 {[%clk 0:02:07]} 21... Bxb3 {[%clk 0:02:08.7]} 22. axb3
{[%clk 0:02:05.6]} 22... f5 {[%clk 0:02:09.2]} 23. Nd2 {[%clk 0:02:05.2]} 23...
Qxd3 {[%clk 0:01:55.9]} 24. Qxd3 {[%clk 0:02:04.8]} 24... Rxd3 {[%clk
0:01:56.8]} 25. Nc4 {[%clk 0:02:03.4]} 25... Red8 {[%clk 0:01:56]} 26. Rxd3
{[%clk 0:02:03]} 26... Rxd3 {[%clk 0:01:56.9]} 27. Nf3 {[%clk 0:02:03.2]} 27...
e4 {[%clk 0:01:56.2]} 28. Nfd2 {[%clk 0:02:03.1]} 28... b5 {[%clk 0:01:56]} 29.
Re3 {[%clk 0:01:54.4]} 29... bxc4 {[%clk 0:01:55.4]} 30. Nxc4 {[%clk 0:01:55.3]}
30... Rxe3 {[%clk 0:01:51.3]} 31. fxe3 {[%clk 0:01:56.2]} 31... Ne5 {[%clk
0:01:51.6]} 32. Nxe5 {[%clk 0:01:54.6]} 32... Bxe5 {[%clk 0:01:51.4]} 33. Kf2
{[%clk 0:01:55.5]} 33... Kg7 {[%clk 0:01:50.3]} 34. Ke2 {[%clk 0:01:54.8]} 34...
Kf6 {[%clk 0:01:50.8]} 35. Kd2 {[%clk 0:01:55.2]} 35... Ke6 {[%clk 0:01:51.4]}
36. Kc2 {[%clk 0:01:54]} 36... Kd5 {[%clk 0:01:51.8]} 37. c4+ {[%clk 0:01:54.9]}
37... Kc6 {[%clk 0:01:51.5]} 38. Kd2 {[%clk 0:01:55.2]} 38... Kb6 {[%clk
0:01:51.7]} 39. g4 {[%clk 0:01:56.1]} 39... fxg4 {[%clk 0:01:51.4]} 40. hxg4
{[%clk 0:01:57]} 40... h5 {[%clk 0:01:52]} 41. gxh5 {[%clk 0:01:56.9]} 41...
gxh5 {[%clk 0:01:52.9]} 42. Ke2 {[%clk 0:01:57.7]} 42... Ka5 {[%clk 0:01:53.8]}
43. Kf2 {[%clk 0:01:58.6]} 43... Kb4 {[%clk 0:01:54.7]} 44. Kg2 {[%clk
0:01:59.3]} 44... Kxb3 {[%clk 0:01:55.5]} 45. Kh3 {[%clk 0:02:00.2]} 45... Kxc4
{[%clk 0:01:56.1]} 46. Kh4 {[%clk 0:02:01.1]} 46... Bxb2 {[%clk 0:01:56.2]} 47.
Kxh5 {[%clk 0:02:02]} 47... Kd3 {[%clk 0:01:56.8]} 48. Kg5 {[%clk 0:02:02.9]}
48... Bc1 {[%clk 0:01:57.4]} 49. Kf5 {[%clk 0:02:03.8]} 49... c4 {[%clk
0:01:58.1]} 50. Ke5 {[%clk 0:02:04.6]} 50... a5 {[%clk 0:01:58.7]} 51. Kd5
{[%clk 0:02:05.5]} 51... a4 {[%clk 0:01:59.3]} 52. Ke5 {[%clk 0:02:06.4]} 52...
a3 {[%clk 0:01:59.9]} 53. Kd5 {[%clk 0:02:07.3]} 53... a2 {[%clk 0:02:00.5]} 54.
Ke5 {[%clk 0:02:08.2]} 54... a1=Q+ {[%clk 0:02:01]} 55. Kd5 {[%clk 0:02:09.1]}
55... c3 {[%clk 0:02:01.5]} 56. Ke5 {[%clk 0:02:10]} 56... Bd2 {[%clk
0:02:02.2]} 57. Kd5 {[%clk 0:02:10.9]} 57... Bxe3 {[%clk 0:02:02.8]} 58. Ke5
{[%clk 0:02:11.8]} 58... Bd4+ {[%clk 0:02:03.4]} 59. Kd5 {[%clk 0:02:12.7]}
59... e3 {[%clk 0:02:04.1]} 60. Ke6 {[%clk 0:02:12.4]} 60... e2 {[%clk
0:02:04.7]} 61. Kd6 {[%clk 0:02:13.3]} 61... c2 {[%clk 0:02:05.1]} 62. Ke6
{[%clk 0:02:14.2]} 62... e1=Q+ {[%clk 0:02:05.5]} 63. Kd6 {[%clk 0:02:14.7]}
63... c1=Q {[%clk 0:02:06]} 64. Kd7 {[%clk 0:02:15.6]} 64... Qab1 {[%clk
0:02:05.6]} 65. Kd6 {[%clk 0:02:15.2]} 65... Qbc2 {[%clk 0:02:06.5]} 66. Kd7
{[%clk 0:02:13.7]} 66... Q2d1 {[%clk 0:02:06.6]} 67. Kd6 {[%clk 0:02:13.2]}
67... Qc5+ {[%clk 0:02:05.8]} 68. Kd7 {[%clk 0:02:14.1]} 68... Qee7# {[%clk
0:02:06.2]} 0-1

[Event "*** Titled Tuesday Blitz"]
[Site "Chess.com"]
[Date "2020.05.12"]
[Round "3"]
[White "hedgehog280"]
[Black "Ati1517"]
[Result "1-0"]
[WhiteElo "2616"]
[BlackElo "2288"]
[TimeControl "180+1"]
[EndTime "10:25:47 PDT"]
[Termination "hedgehog280 won by resignation"]

1. c4 {[%clk 0:02:57.9]} 1... e5 {[%clk 0:02:55.3]} 2. Nc3 {[%clk 0:02:58.4]}
2... Nc6 {[%clk 0:02:52.3]} 3. Nf3 {[%clk 0:02:58.9]} 3... Nf6 {[%clk
0:02:51.8]} 4. e4 {[%clk 0:02:59.2]} 4... Bc5 {[%clk 0:02:50.9]} 5. Nxe5 {[%clk
0:02:59.2]} 5... Nxe5 {[%clk 0:02:47.9]} 6. d4 {[%clk 0:02:59]} 6... Bxd4 {[%clk
0:02:45.4]} 7. Qxd4 {[%clk 0:02:58.4]} 7... d6 {[%clk 0:02:45.8]} 8. Bg5 {[%clk
0:02:54.9]} 8... Be6 {[%clk 0:02:41.5]} 9. f4 {[%clk 0:02:48.5]} 9... Nc6 {[%clk
0:02:40.3]} 10. Qd2 {[%clk 0:02:48.3]} 10... h6 {[%clk 0:02:37.7]} 11. Bh4
{[%clk 0:02:48.4]} 11... g5 {[%clk 0:02:23]} 12. fxg5 {[%clk 0:02:42.1]} 12...
Nh7 {[%clk 0:02:21.1]} 13. O-O-O {[%clk 0:02:39]} 13... hxg5 {[%clk 0:02:18.9]}
14. Bg3 {[%clk 0:02:39.4]} 14... Qd7 {[%clk 0:02:16.1]} 15. Be2 {[%clk
0:02:32.6]} 15... O-O-O {[%clk 0:02:05.3]} 16. Qc2 {[%clk 0:02:26.2]} 16... Nf6
{[%clk 0:01:41.1]} 17. e5 {[%clk 0:02:22.1]} 17... Bf5 {[%clk 0:01:41.1]} 18.
Qb3 {[%clk 0:02:22.1]} 18... Nh5 {[%clk 0:01:26]} 19. Bxh5 {[%clk 0:02:16.1]}
19... Rxh5 {[%clk 0:01:25.7]} 20. exd6 {[%clk 0:02:16.7]} 20... cxd6 {[%clk
0:01:21.5]} 21. Rxd6 {[%clk 0:02:14]} 21... Nd4 {[%clk 0:01:18.3]} 22. Qb4
{[%clk 0:02:09.5]} 22... Qe7 {[%clk 0:00:55.8]} 23. Qc5+ {[%clk 0:01:47.9]}
23... Nc6 {[%clk 0:00:54.2]} 24. Rxc6+ {[%clk 0:01:48.3]} 1-0

[Event "*** Titled Tuesday Blitz"]
[Site "Chess.com"]
[Date "2020.05.12"]
[Round "3"]
[White "Nikithebest"]
[Black "H3nriqueTV"]
[Result "0-1"]
[WhiteElo "2389"]
[BlackElo "2191"]
[TimeControl "180+1"]
[EndTime "10:25:52 PDT"]
[Termination "H3nriqueTV won by checkmate"]

1. e4 {[%clk 0:03:00.9]} 1... c5 {[%clk 0:02:58.2]} 2. Nf3 {[%clk 0:03:01]} 2...
b6 {[%clk 0:02:57]} 3. d4 {[%clk 0:03:00]} 3... cxd4 {[%clk 0:02:57.9]} 4. Nxd4
{[%clk 0:03:00.6]} 4... Bb7 {[%clk 0:02:56.1]} 5. Nc3 {[%clk 0:03:01.3]} 5... a6
{[%clk 0:02:55.5]} 6. f3 {[%clk 0:03:01.9]} 6... e6 {[%clk 0:02:54.3]} 7. Be3
{[%clk 0:03:02.5]} 7... Qc7 {[%clk 0:02:54]} 8. Qd2 {[%clk 0:03:03]} 8... Nf6
{[%clk 0:02:51.5]} 9. O-O-O {[%clk 0:03:03.6]} 9... Bb4 {[%clk 0:02:49.9]} 10.
g4 {[%clk 0:02:54.8]} 10... Nc6 {[%clk 0:02:41.4]} 11. Nde2 {[%clk 0:02:49.2]}
11... Ne5 {[%clk 0:02:38.7]} 12. Nd4 {[%clk 0:02:45.5]} 12... d6 {[%clk
0:02:31.1]} 13. g5 {[%clk 0:02:46.1]} 13... Nfd7 {[%clk 0:02:30.4]} 14. f4
{[%clk 0:02:14.6]} 14... Ng4 {[%clk 0:01:59.3]} 15. Rg1 {[%clk 0:02:13]} 15...
Nxe3 {[%clk 0:01:56.6]} 16. Qxe3 {[%clk 0:02:13.9]} 16... Rc8 {[%clk 0:01:55.9]}
17. Nde2 {[%clk 0:02:09.3]} 17... Nc5 {[%clk 0:01:45.6]} 18. Bg2 {[%clk
0:02:04.5]} 18... Na4 {[%clk 0:01:44.4]} 19. Rd3 {[%clk 0:02:02.3]} 19... Nc5
{[%clk 0:01:11.1]} 20. Rd2 {[%clk 0:01:41.2]} 20... b5 {[%clk 0:01:08.1]} 21.
Kb1 {[%clk 0:01:36]} 21... Na4 {[%clk 0:01:04.3]} 22. Rd3 {[%clk 0:01:33.2]}
22... Bc5 {[%clk 0:01:02.5]} 23. Nd4 {[%clk 0:01:32.4]} 23... e5 {[%clk
0:01:02.4]} 24. fxe5 {[%clk 0:01:21.7]} 24... dxe5 {[%clk 0:01:01.5]} 25. Nd5
{[%clk 0:01:22.4]} 25... Bxd5 {[%clk 0:01:01]} 26. exd5 {[%clk 0:01:22.6]} 26...
Bxd4 {[%clk 0:01:01.1]} 27. Rxd4 {[%clk 0:01:22]} 27... Qxc2+ {[%clk 0:00:59.5]}
28. Ka1 {[%clk 0:01:22.6]} 28... Qxb2# {[%clk 0:00:59.7]} 0-1

[Event "*** Titled Tuesday Blitz"]
[Site "Chess.com"]
[Date "2020.05.12"]
[Round "3"]
[White "pedromartinez91"]
[Black "CzechmVIII"]
[Result "1-0"]
[WhiteElo "2510"]
[BlackElo "2244"]
[TimeControl "180+1"]
[EndTime "10:25:57 PDT"]
[Termination "pedromartinez91 won by resignation"]

1. b3 {[%clk 0:03:00.9]} 1... e5 {[%clk 0:02:59.3]} 2. Bb2 {[%clk 0:02:59.9]}
2... Nc6 {[%clk 0:02:59.4]} 3. e3 {[%clk 0:02:58.3]} 3... Nf6 {[%clk 0:02:59.4]}
4. Bb5 {[%clk 0:02:57.8]} 4... Bd6 {[%clk 0:02:59.5]} 5. Na3 {[%clk 0:02:48.9]}
5... a6 {[%clk 0:02:59.5]} 6. Bxc6 {[%clk 0:02:48.9]} 6... dxc6 {[%clk
0:02:59.7]} 7. Nc4 {[%clk 0:02:49.5]} 7... Qe7 {[%clk 0:02:58]} 8. d3 {[%clk
0:02:47.3]} 8... b5 {[%clk 0:02:49.1]} 9. Nd2 {[%clk 0:02:46.3]} 9... O-O {[%clk
0:02:46.9]} 10. Ngf3 {[%clk 0:02:44.9]} 10... c5 {[%clk 0:02:34.4]} 11. O-O
{[%clk 0:02:42.1]} 11... Re8 {[%clk 0:02:29.5]} 12. e4 {[%clk 0:02:41.5]} 12...
h6 {[%clk 0:02:25.2]} 13. a4 {[%clk 0:02:40.8]} 13... Bd7 {[%clk 0:02:22.9]} 14.
Re1 {[%clk 0:02:40.4]} 14... bxa4 {[%clk 0:02:20.7]} 15. bxa4 {[%clk 0:02:41.1]}
15... Rab8 {[%clk 0:02:17.9]} 16. Nc4 {[%clk 0:02:41.1]} 16... Nh5 {[%clk
0:01:53.9]} 17. Bxe5 {[%clk 0:02:33.8]} 17... Nf4 {[%clk 0:01:37.4]} 18. Nxd6
{[%clk 0:02:29.1]} 18... Nxg2 {[%clk 0:01:28.8]} 19. Kxg2 {[%clk 0:02:27.5]}
19... cxd6 {[%clk 0:01:28.9]} 20. Bg3 {[%clk 0:02:28.1]} 20... Bg4 {[%clk
0:01:26.8]} 21. Qd2 {[%clk 0:02:24.7]} 21... Qf6 {[%clk 0:01:20.2]} 22. Qf4
{[%clk 0:02:23.7]} 22... Qxf4 {[%clk 0:00:50]} 23. Bxf4 {[%clk 0:02:22.8]} 23...
Rb2 {[%clk 0:00:50.1]} 24. Rec1 {[%clk 0:02:17.3]} 24... d5 {[%clk 0:00:43.8]}
25. exd5 {[%clk 0:02:14.2]} 25... Re2 {[%clk 0:00:43.6]} 26. Kg3 {[%clk
0:02:10.8]} 26... Bd7 {[%clk 0:00:40]} 27. Ne5 {[%clk 0:02:08.7]} 27... g5
{[%clk 0:00:28.2]} 28. Be3 {[%clk 0:02:06.9]} 28... f5 {[%clk 0:00:22.7]} 29.
Nxd7 {[%clk 0:02:05.1]} 29... f4+ {[%clk 0:00:23]} 30. Kf3 {[%clk 0:02:05.6]}
1-0

[Event "*** Titled Tuesday Blitz"]
[Site "Chess.com"]
[Date "2020.05.12"]
[Round "3"]
[White "Evgeny81"]
[Black "Nafania1"]
[Result "1-0"]
[WhiteElo "2703"]
[BlackElo "2422"]
[TimeControl "180+1"]
[EndTime "10:26:00 PDT"]
[Termination "Evgeny81 won by resignation"]

1. d4 {[%clk 0:03:00.9]} 1... Nf6 {[%clk 0:02:59.2]} 2. c4 {[%clk 0:02:58.3]}
2... e6 {[%clk 0:02:59.5]} 3. Nc3 {[%clk 0:02:57.7]} 3... Bb4 {[%clk 0:02:59.4]}
4. e3 {[%clk 0:02:58]} 4... O-O {[%clk 0:02:58.7]} 5. Bd3 {[%clk 0:02:58]} 5...
c5 {[%clk 0:02:57.1]} 6. Nf3 {[%clk 0:02:57.3]} 6... b6 {[%clk 0:02:53.8]} 7.
O-O {[%clk 0:02:57.2]} 7... Bxc3 {[%clk 0:02:50]} 8. bxc3 {[%clk 0:02:57]} 8...
Bb7 {[%clk 0:02:50.4]} 9. Qe2 {[%clk 0:02:51.3]} 9... Ne4 {[%clk 0:02:44.8]} 10.
Bb2 {[%clk 0:02:49.1]} 10... f5 {[%clk 0:02:40.7]} 11. Nd2 {[%clk 0:02:48.2]}
11... Nxd2 {[%clk 0:02:29.5]} 12. Qxd2 {[%clk 0:02:47.7]} 12... d6 {[%clk
0:02:24.9]} 13. f3 {[%clk 0:02:43.1]} 13... Nd7 {[%clk 0:02:24.9]} 14. e4 {[%clk
0:02:40.7]} 14... f4 {[%clk 0:02:25.2]} 15. Rad1 {[%clk 0:02:26.8]} 15... e5
{[%clk 0:02:22]} 16. Bc2 {[%clk 0:02:24.9]} 16... Bc6 {[%clk 0:02:14.9]} 17.
dxc5 {[%clk 0:02:18.7]} 17... dxc5 {[%clk 0:02:13.4]} 18. Qe2 {[%clk 0:02:10.4]}
18... Qc7 {[%clk 0:02:05.2]} 19. Rd5 {[%clk 0:02:02.5]} 19... Nf6 {[%clk
0:01:56]} 20. Rfd1 {[%clk 0:02:01.5]} 20... Rad8 {[%clk 0:01:48.2]} 21. R1d2
{[%clk 0:01:57.2]} 21... Bxd5 {[%clk 0:01:43.4]} 22. cxd5 {[%clk 0:01:54.8]}
22... Ne8 {[%clk 0:01:41.3]} 23. c4 {[%clk 0:01:52.1]} 23... Nd6 {[%clk
0:01:30.7]} 24. Bxe5 {[%clk 0:01:49.2]} 24... Qe7 {[%clk 0:01:25.9]} 25. Bxd6
{[%clk 0:01:40.6]} 25... Rxd6 {[%clk 0:01:24.4]} 26. e5 {[%clk 0:01:40.9]} 26...
Rh6 {[%clk 0:01:21.2]} 27. d6 {[%clk 0:01:23.7]} 27... Qh4 {[%clk 0:01:21]} 28.
h3 {[%clk 0:01:23.7]} 28... Qg5 {[%clk 0:01:16.7]} 29. e6 {[%clk 0:01:18.7]}
29... Rxh3 {[%clk 0:01:15.2]} 30. e7 {[%clk 0:01:18.3]} 1-0

[Event "*** Titled Tuesday Blitz"]
[Site "Chess.com"]
[Date "2020.05.12"]
[Round "3"]
[White "Shoytan"]
[Black "VladDobrov"]
[Result "0-1"]
[WhiteElo "2582"]
[BlackElo "2765"]
[TimeControl "180+1"]
[EndTime "10:26:02 PDT"]
[Termination "VladDobrov won by resignation"]

1. Nf3 {[%clk 0:03:00.9]} 1... d5 {[%clk 0:02:58.7]} 2. c4 {[%clk 0:03:00.5]}
2... d4 {[%clk 0:02:58.6]} 3. e3 {[%clk 0:02:56.9]} 3... Nc6 {[%clk 0:02:56.3]}
4. exd4 {[%clk 0:02:48.1]} 4... Nxd4 {[%clk 0:02:56.1]} 5. Nxd4 {[%clk
0:02:43.7]} 5... Qxd4 {[%clk 0:02:57]} 6. d3 {[%clk 0:02:44.1]} 6... Nh6 {[%clk
0:02:56.7]} 7. Nc3 {[%clk 0:02:41.5]} 7... c6 {[%clk 0:02:56.6]} 8. Be3 {[%clk
0:02:39.3]} 8... Qd8 {[%clk 0:02:54.6]} 9. Bxh6 {[%clk 0:02:36.4]} 9... gxh6
{[%clk 0:02:54.7]} 10. Be2 {[%clk 0:02:36.2]} 10... Bg7 {[%clk 0:02:55]} 11. O-O
{[%clk 0:02:35.5]} 11... O-O {[%clk 0:02:52.3]} 12. Bf3 {[%clk 0:02:34.6]} 12...
Bf5 {[%clk 0:02:49.8]} 13. Ne4 {[%clk 0:02:29.8]} 13... Qb6 {[%clk 0:02:42.4]}
14. Rb1 {[%clk 0:02:26.6]} 14... Rad8 {[%clk 0:02:42]} 15. Qe2 {[%clk
0:01:52.3]} 15... Rd7 {[%clk 0:02:37.2]} 16. b4 {[%clk 0:01:46.7]} 16... Qd4
{[%clk 0:02:25.7]} 17. Rfd1 {[%clk 0:01:22.7]} 17... Rfd8 {[%clk 0:02:20.3]} 18.
Nc5 {[%clk 0:01:17.6]} 18... Rc7 {[%clk 0:02:20.6]} 19. Be4 {[%clk 0:01:13]}
19... Bg6 {[%clk 0:02:18]} 20. Nb3 {[%clk 0:01:03.6]} 20... Qc3 {[%clk
0:02:11.3]} 21. a3 {[%clk 0:00:56.1]} 21... e6 {[%clk 0:02:00.7]} 22. h4 {[%clk
0:00:38.3]} 22... h5 {[%clk 0:02:00]} 23. g3 {[%clk 0:00:35.7]} 23... b6 {[%clk
0:01:57]} 24. Bxg6 {[%clk 0:00:30.1]} 24... hxg6 {[%clk 0:01:56.7]} 25. d4
{[%clk 0:00:28.7]} 25... Bxd4 {[%clk 0:01:49.1]} 26. Rd3 {[%clk 0:00:28.2]}
26... Qxd3 {[%clk 0:01:48.3]} 0-1

[Event "*** Titled Tuesday Blitz"]
[Site "Chess.com"]
[Date "2020.05.12"]
[Round "3"]
[White "Parhamov"]
[Black "fm_magua"]
[Result "1/2-1/2"]
[WhiteElo "3000"]
[BlackElo "2553"]
[TimeControl "180+1"]
[EndTime "10:26:03 PDT"]
[Termination "Game drawn by agreement"]

1. e4 {[%clk 0:03:00.9]} 1... c5 {[%clk 0:03:00.2]} 2. Nf3 {[%clk 0:03:00.7]}
2... Nc6 {[%clk 0:03:00.9]} 3. d4 {[%clk 0:02:59]} 3... cxd4 {[%clk 0:03:01.8]}
4. Nxd4 {[%clk 0:02:58.9]} 4... e5 {[%clk 0:03:02.4]} 5. Nb5 {[%clk 0:02:58.2]}
5... d6 {[%clk 0:03:02.4]} 6. N1c3 {[%clk 0:02:55.2]} 6... a6 {[%clk 0:03:01.8]}
7. Na3 {[%clk 0:02:54.6]} 7... b5 {[%clk 0:03:02]} 8. Nd5 {[%clk 0:02:54.4]}
8... Nce7 {[%clk 0:03:02.1]} 9. c4 {[%clk 0:02:53.7]} 9... Nxd5 {[%clk
0:03:01.8]} 10. cxd5 {[%clk 0:02:53.2]} 10... f5 {[%clk 0:03:01.2]} 11. exf5
{[%clk 0:02:35.3]} 11... Bxf5 {[%clk 0:03:00.3]} 12. Nc2 {[%clk 0:02:35.8]}
12... Nf6 {[%clk 0:03:00.4]} 13. Ne3 {[%clk 0:02:34.3]} 13... Bg6 {[%clk
0:03:00.7]} 14. h4 {[%clk 0:02:33.2]} 14... Be7 {[%clk 0:03:00.4]} 15. h5 {[%clk
0:02:30.4]} 15... Bf7 {[%clk 0:03:00.7]} 16. Nf5 {[%clk 0:02:29.1]} 16... Bxd5
{[%clk 0:02:49.4]} 17. Nxg7+ {[%clk 0:02:27.7]} 17... Kf7 {[%clk 0:02:49.7]} 18.
Nf5 {[%clk 0:02:25.1]} 18... Be6 {[%clk 0:02:48.2]} 19. Nxe7 {[%clk 0:02:20.6]}
19... Qxe7 {[%clk 0:02:46]} 20. Bg5 {[%clk 0:02:09.7]} 20... h6 {[%clk
0:02:41.3]} 21. Bh4 {[%clk 0:02:07.9]} 21... d5 {[%clk 0:02:33.7]} 22. Rc1
{[%clk 0:02:06.6]} 22... Qb4+ {[%clk 0:02:32.5]} 23. Qd2 {[%clk 0:02:05.2]}
23... Qxd2+ {[%clk 0:02:32.5]} 24. Kxd2 {[%clk 0:02:05.3]} 24... Rac8 {[%clk
0:02:32.9]} 25. Rxc8 {[%clk 0:02:00.4]} 25... Rxc8 {[%clk 0:02:21.9]} 26. Be2
{[%clk 0:02:00]} 26... Ne4+ {[%clk 0:02:20.7]} 27. Ke3 {[%clk 0:01:59.8]} 27...
Bf5 {[%clk 0:02:18.6]} 28. Bd3 {[%clk 0:01:57.8]} 28... d4+ {[%clk 0:02:11.1]}
29. Ke2 {[%clk 0:01:55.9]} 29... Nd6 {[%clk 0:02:11.4]} 30. f3 {[%clk
0:01:53.6]} 30... Bxd3+ {[%clk 0:01:59.9]} 31. Kxd3 {[%clk 0:01:54.5]} 31... Nc4
{[%clk 0:01:57.2]} 32. b3 {[%clk 0:01:53.6]} 32... Nb2+ {[%clk 0:01:55.3]} 33.
Ke4 {[%clk 0:01:53.5]} 33... Ke6 {[%clk 0:01:53.2]} 34. Bg3 {[%clk 0:01:51.2]}
34... Rc3 {[%clk 0:01:51.1]} 35. Bxe5 {[%clk 0:01:18.2]} 35... Re3+ {[%clk
0:01:47.8]} 36. Kxd4 {[%clk 0:01:18.4]} 36... Rxe5 {[%clk 0:01:48]} 37. Rc1
{[%clk 0:01:18.1]} 37... Rd5+ {[%clk 0:01:24.6]} 1/2-1/2